fUSD/lending_fUSD_20241121
["ID","MTS","AMOUNT","RATE_DAILY","PERIOD"]
[342864903,1732189844420,-4512.45,0.00041095,18]
[342864904,1732189844430,-500.0,0.00041095,18]
[342864906,1732189844440,-650.99,0.00041095,18]
[342864908,1732189844450,-882.97,0.00041095,18]
[342864910,1732189844459,-522.46,0.00041095,18]
[342864911,1732189844468,-1811.74,0.00041095,18]
[342864913,1732189844478,-500.0,0.00041095,18]
[342864915,1732189844488,-966.03,0.00041095,18]
[342864917,1732189844498,-500.0,0.00041095,18]
[342864918,1732189844507,-919.5,0.00041095,18]
[342864920,1732189844516,-500.0,0.00041095,18]
[342864922,1732189844525,-500.0,0.00041095,18]
[342864924,1732189844534,-500.0,0.00041095,18]
[342864925,1732189844543,-1668.26,0.00041095,18]
[342864927,1732189844552,-500.0,0.00041095,18]
[342864929,1732189844561,-2694.89,0.00041095,18]
[342864931,1732189844570,-500.0,0.00041095,18]
[342864932,1732189844579,-500.0,0.00041095,18]
[342864934,1732189844589,-831.02,0.00041095,18]
[342864936,1732189844598,-500.0,0.00041095,18]
[342864938,1732189844608,-500.0,0.00041095,18]
[342864939,1732189844617,-500.0,0.00041095,18]
[342864941,1732189844626,-500.0,0.00041095,18]
[342864943,1732189844637,-1045.53,0.00041095,18]
[342864945,1732189844647,-925.51,0.00041095,18]
[342864946,1732189844656,-500.0,0.00041095,18]
[342864948,1732189844666,-588.84,0.00041095,18]
[342864950,1732189844675,-2584.44,0.00041095,18]
[342864951,1732189844684,-500.0,0.00041095,18]
[342864953,1732189844693,-500.0,0.00041095,18]
[342864955,1732189844702,-500.0,0.00041095,18]
[342864957,1732189844711,-500.0,0.00041095,18]
[342864958,1732189844720,-847.57,0.00041095,18]
[342864960,1732189844730,-500.0,0.00041095,18]
[342864962,1732189844740,-2291.53,0.00041095,18]
[342864964,1732189844750,-597.75,0.00041095,18]
[342864966,1732189844759,-500.0,0.00041095,18]
[342864967,1732189844768,-500.0,0.00041095,18]
[342864969,1732189844777,-500.0,0.00041095,18]
[342864970,1732189844787,-1472.28,0.00041095,18]
[342864971,1732189844795,-560.21,0.00041095,18]
[342864972,1732189844805,-591.25,0.00041095,18]
[342864973,1732189844814,-500.0,0.00041095,18]
[342864974,1732189844824,-500.0,0.00041095,18]
[342864975,1732189844834,-665.88,0.00041095,18]
[342864976,1732189844844,-1147.78,0.00041095,18]
[342864977,1732189844853,-500.0,0.00041095,18]
[342864978,1732189844863,-935.46,0.00041095,18]
[342864980,1732189844873,-500.0,0.00041095,18]
[342864981,1732189844884,-500.0,0.00041095,18]
[342864983,1732189844894,-752.73,0.00041095,18]
[342864985,1732189844904,-500.0,0.00041095,18]
[342864987,1732189844916,-500.0,0.00041095,18]
[342864989,1732189844926,-500.0,0.00041095,18]
[342864991,1732189844936,-500.0,0.00041095,18]
[342864993,1732189844945,-500.0,0.00041095,18]
[342864995,1732189844956,-500.0,0.00041095,18]
[342864998,1732189844966,-500.0,0.00041095,18]
[342865000,1732189844975,-500.0,0.00041095,18]
[342865001,1732189844984,-500.0,0.00041095,18]
[342865004,1732189844994,-1622.74,0.00041095,18]
[342865005,1732189845004,-1244.68,0.00041095,18]
[342865007,1732189845013,-1228.35,0.00041095,18]
[342865009,1732189845023,-500.0,0.00041095,18]
[342865011,1732189845032,-500.0,0.00041095,18]
[342865013,1732189845041,-631.03,0.00041095,18]
[342865015,1732189845049,-500.0,0.00041095,18]
[342865017,1732189845059,-597.69,0.00041095,18]
[342865019,1732189845068,-500.0,0.00041095,18]
[342865021,1732189845077,-2792.56,0.00041095,18]
[342865023,1732189845086,-500.0,0.00041095,18]
[342865025,1732189845096,-4843.23,0.00041095,18]
[342865027,1732189845106,-1008.65,0.00041095,18]
[342865029,1732189845115,-500.0,0.00041095,18]
[342865031,1732189845125,-500.0,0.00041095,18]
[342865033,1732189845134,-500.0,0.00041095,18]
[342865035,1732189845144,-500.0,0.00041095,18]
[342865037,1732189845155,-500.0,0.00041095,18]
[342865039,1732189845164,-500.0,0.00041095,18]
[342865041,1732189845174,-508.85130006,0.00041095,18]
[342865043,1732189845183,-1216.53,0.00041095,18]
[342865045,1732189845192,-1464.72,0.00041095,7]
[342865047,1732189845202,-500.0,0.00041095,18]
[342865049,1732189845211,-2672.1,0.00041095,18]
[342865051,1732189845220,-500.0,0.00041095,18]
[342865053,1732189845230,-500.0,0.00041095,18]
[342865055,1732189845239,-500.0,0.00041095,18]
[342865057,1732189845248,-622.41,0.00041095,18]
[342865059,1732189845257,-500.0,0.00041095,18]
[342865061,1732189845266,-1764.08,0.00041095,18]
[342865063,1732189845276,-500.0,0.00041095,18]
[342865065,1732189845286,-1567.88,0.00041095,18]
[342865067,1732189845295,-500.0,0.00041095,18]
[342865069,1732189845305,-500.0,0.00041095,18]
[342865071,1732189845314,-3298.84,0.00041095,18]
[342865073,1732189845323,-500.0,0.00041095,18]
[342865075,1732189845332,-151.0,0.00041095,14]
[342865077,1732189845341,-2714.51,0.00041095,18]
[342865079,1732189845351,-500.0,0.00041095,18]
[342865081,1732189845360,-500.0,0.00041095,18]
[342865083,1732189845369,-863.72,0.00041095,18]
[342865085,1732189845378,-500.0,0.00041095,18]
[342865087,1732189845389,-500.0,0.00041095,18]
[342865089,1732189845399,-814.71,0.00041095,18]
[342865091,1732189845408,-500.0,0.00041095,18]
[342865093,1732189845417,-500.0,0.00041095,18]
[342865095,1732189845426,-1233.32,0.00041095,18]
[342865097,1732189845435,-500.0,0.00041095,18]
[342865099,1732189845444,-1311.35,0.00041095,120]
[342865101,1732189845453,-500.0,0.00041095,18]
[342865103,1732189845462,-500.0,0.00041095,18]
[342865104,1732189845471,-500.0,0.00041095,18]
[342865106,1732189845480,-500.0,0.00041095,18]
[342865108,1732189845489,-500.0,0.00041095,18]
[342865110,1732189845499,-2200.06,0.00041095,18]
[342865112,1732189845508,-500.0,0.00041095,18]
[342865114,1732189845517,-602.98720278,0.00041095,18]
[342865116,1732189845526,-500.0,0.00041095,18]
[342865118,1732189845535,-500.0,0.00041095,18]
[342865120,1732189845544,-500.84555965,0.00041095,18]
[342865122,1732189845553,-500.0,0.00041095,18]
[342865124,1732189845562,-500.0,0.00041095,18]
[342865126,1732189845573,-500.0,0.00041095,18]
[342865128,1732189845581,-1406.28,0.00041095,18]
[342865130,1732189845590,-500.0,0.00041095,18]
[342865132,1732189845599,-1116.87,0.00041095,18]
[342865134,1732189845609,-500.0,0.00041095,18]
[342865136,1732189845618,-1036.7,0.00041095,18]
[342865138,1732189845628,-1000.0,0.00041095,120]
[342865140,1732189845637,-2928.68,0.00041095,18]
[342865142,1732189845646,-500.0,0.00041095,18]
[342865143,1732189845655,-500.0,0.00041095,18]
[342865145,1732189845664,-500.0,0.00041095,18]
[342865147,1732189845674,-500.0,0.00041095,18]
[342865149,1732189845683,-500.0,0.00041095,18]
[342865151,1732189845692,-500.0,0.00041095,18]
[342865153,1732189845702,-500.0,0.00041095,18]
[342865155,1732189845711,-628.62,0.00041095,18]
[342865158,1732189845720,-500.0,0.00041095,18]
[342865160,1732189845730,-654.48,0.00041095,18]
[342865161,1732189845739,-500.0,0.00041095,18]
[342865164,1732189845749,-500.0,0.00041095,18]
[342865165,1732189845759,-2469.47,0.00041095,18]
[342865168,1732189845769,-2464.74,0.00041095,18]
[342865169,1732189845778,-500.0,0.00041095,18]
[342865171,1732189845788,-500.0,0.00041095,18]
[342865173,1732189845797,-4517.0,0.00041095,18]
[342865175,1732189845807,-1694.28,0.00041095,18]
[342865177,1732189845817,-1255.36,0.00041095,18]
[342865179,1732189845826,-1976.43,0.00041095,18]
[342865181,1732189845835,-17486.25,0.00041095,18]
[342865183,1732189845844,-500.0,0.00041095,18]
[342865185,1732189845853,-500.0,0.00041095,18]
[342865187,1732189845862,-648.61,0.00041095,18]
[342865189,1732189845871,-500.0,0.00041095,5]
[342865191,1732189845880,-500.0,0.00041095,18]
[342865194,1732189845894,-500.0,0.00041095,18]
[342865195,1732189845904,-934.3,0.00041095,18]
[342865198,1732189845916,-549.62,0.00041095,18]
[342865199,1732189845926,-500.0,0.00041095,18]
[342865201,1732189845935,-655.75,0.00041095,18]
[342865204,1732189845944,-2148.63,0.00041095,18]
[342865207,1732189845955,-500.0,0.00041095,18]
[342865208,1732189845964,-565.35,0.00041095,18]
[342865210,1732189845974,-1079.88,0.00041095,18]
[342865212,1732189845983,-500.0,0.00041095,18]
[342865214,1732189845994,-2491.3,0.00041095,18]
[342865216,1732189846007,-501.30393091,0.00041095,18]
[342865219,1732189846016,-500.0,0.00041095,18]
[342865222,1732189846026,-786.98,0.00041095,18]
[342865224,1732189846037,-500.0,0.00041095,18]
[342865226,1732189846047,-628.46,0.00041095,18]
[342865228,1732189846057,-502.81,0.00041095,18]
[342865230,1732189846066,-533.38246897,0.00041095,18]
[342865232,1732189846076,-500.0,0.00041095,18]
[342865234,1732189846085,-1255.64,0.00041095,18]
[342865236,1732189846095,-500.0,0.00041095,18]
[342865238,1732189846105,-500.0,0.00041095,18]
[342865240,1732189846114,-912.1,0.00041095,18]
[342865242,1732189846124,-500.0,0.00041095,18]
[342865244,1732189846135,-365.56460111,0.00041095,18]
[342865246,1732189846144,-2318.15,0.00041095,18]
[342865248,1732189846154,-500.0,0.00041095,18]
[342865250,1732189846163,-545.27,0.00041095,18]
[342865252,1732189846172,-625.05,0.00041095,18]
[342865254,1732189846182,-1312.9,0.00041095,18]
[342865256,1732189846191,-500.0,0.00041095,18]
[342865258,1732189846200,-1569.87,0.00041095,18]
[342865260,1732189846209,-5024.57,0.00041095,18]
[342865262,1732189846219,-674.18,0.00041095,18]
[342865264,1732189846227,-500.0,0.00041095,18]
[342865266,1732189846237,-500.0,0.00041095,18]
[342865268,1732189846246,-592.85,0.00041095,18]
[342865270,1732189846256,-500.0,0.00041095,18]
[342865272,1732189846265,-500.0,0.00041095,18]
[342865274,1732189846274,-500.0,0.00041095,18]
[342865276,1732189846284,-643.92998181,0.00041095,18]
[342865278,1732189846293,-802.85,0.00041095,18]
[342865280,1732189846303,-500.0,0.00041095,18]
[342865282,1732189846313,-500.0,0.00041095,18]
[342865283,1732189846323,-500.0,0.00041095,18]
[342865285,1732189846332,-500.0,0.00041095,18]
[342865287,1732189846341,-500.0,0.00041095,18]
[342865289,1732189846350,-500.0,0.00041095,18]
[342865291,1732189846360,-500.0,0.00041095,18]
[342865293,1732189846369,-2203.13,0.00041095,18]
[342865295,1732189846378,-500.0,0.00041095,18]
[342865297,1732189846389,-1394.99,0.00041095,18]
[342865299,1732189846398,-500.0,0.00041095,18]
[342865301,1732189846408,-327.93048079,0.00041095,18]
[342865303,1732189846417,-500.0,0.00041095,18]
[342865305,1732189846427,-65004.27,0.00041095,5]
[342865307,1732189846436,-500.0,0.00041095,18]
[342865309,1732189846445,-500.0,0.00041095,18]
[342865311,1732189846455,-742.64,0.00041095,18]
[342865313,1732189846464,-1155.41,0.00041095,18]
[342865315,1732189846473,-500.0,0.00041095,18]
[342865317,1732189846483,-4892.28,0.00041095,18]
[342865319,1732189846492,-518.67,0.00041095,18]
[342865321,1732189846501,-612.58,0.00041095,18]
[342865323,1732189846510,-500.0,0.00041095,18]
[342865325,1732189846520,-702.52,0.00041095,18]
[342865327,1732189846529,-500.0,0.00041095,18]
[342865329,1732189846538,-500.0,0.00041095,18]
[342865331,1732189846548,-500.0,0.00041095,18]
[342865333,1732189846557,-1637.15,0.00041095,18]
[342865335,1732189846566,-500.0,0.00041095,18]
[342865337,1732189846575,-980.39,0.00041095,18]
[342865339,1732189846585,-580.38,0.00041095,18]
[342865341,1732189846594,-4552.85,0.00041095,18]
[342865343,1732189846603,-1554.4,0.00041095,18]
[342865345,1732189846613,-500.0,0.00041095,18]
[342865347,1732189846622,-500.0,0.00041095,18]
[342865349,1732189846630,-2143.9,0.00041095,18]
[342865351,1732189846642,-500.0,0.00041095,18]
[342865353,1732189846651,-580.67,0.00041095,18]
[342865355,1732189846660,-500.0,0.00041095,18]
[342865357,1732189846670,-1263.03,0.00041095,18]
[342865359,1732189846680,-554.88,0.00041095,18]
[342865361,1732189846689,-2289.57,0.00041095,18]
[342865363,1732189846698,-2183.27,0.00041095,18]
[342865365,1732189846707,-954.54,0.00041095,18]
[342865367,1732189846718,-500.0,0.00041095,18]
[342865369,1732189846727,-1234.16,0.00041095,18]
[342865371,1732189846736,-1316.74,0.00041095,18]
[342865373,1732189846745,-1465.04,0.00041095,18]
[342865375,1732189846754,-834.36,0.00041095,18]
[342865377,1732189846763,-649.17,0.00041095,18]
[342865379,1732189846772,-151.0,0.00041095,14]
[342865381,1732189846782,-500.0,0.00041095,18]
[342865383,1732189846791,-151.0,0.00041095,14]
[342865385,1732189846800,-500.0,0.00041095,2]
[342865386,1732189846809,-500.0,0.00041095,18]
[342865387,1732189846819,-500.0,0.00041095,18]
[342865388,1732189846828,-500.0,0.00041095,18]
[342865389,1732189846837,-500.0,0.00041095,18]
[342865390,1732189846847,-865.42,0.00041095,18]
[342865391,1732189846856,-500.0,0.00041095,18]
[342865392,1732189846866,-500.0,0.00041095,18]
[342865393,1732189846876,-500.0,0.00041095,18]
[342865394,1732189846888,-500.0,0.00041095,18]
[342865395,1732189846897,-1648.45,0.00041095,18]
[342865396,1732189846907,-4695.93,0.00041095,18]
[342865397,1732189846922,-8418.22,0.00041095,18]
[342865398,1732189846932,-607.15,0.00041095,18]
[342865399,1732189846942,-1884.07,0.00041095,18]
[342865400,1732189846953,-1645.62,0.00041095,18]
[342865401,1732189846963,-2816.65,0.00041095,18]
[342865402,1732189846972,-500.0,0.00041095,18]
[342865403,1732189846982,-500.0,0.00041095,18]
[342865404,1732189846993,-719.83,0.00041095,18]
[342865405,1732189847003,-694.59,0.00041095,18]
[342865406,1732189847012,-500.0,0.00041095,18]
[342865407,1732189847022,-500.0,0.00041095,18]
[342865408,1732189847031,-500.0,0.00041095,18]
[342865409,1732189847040,-564.42202256,0.00041095,18]
[342865410,1732189847049,-667.66,0.00041095,18]
[342865411,1732189847058,-500.0,0.00041095,18]
[342865412,1732189847068,-500.0,0.00041095,18]
[342865413,1732189847077,-2558.79,0.00041095,18]
[342865414,1732189847086,-971.69,0.00041095,18]
[342865415,1732189847095,-287.75493485,0.00041095,18]
[342865416,1732189847105,-686.47,0.00041095,18]
[342865417,1732189847114,-500.0,0.00041095,18]
[342865418,1732189847123,-500.0,0.00041095,18]
[342865419,1732189847134,-2427.27,0.00041095,18]
[342865420,1732189847143,-1104.01,0.00041095,18]
[342865421,1732189847153,-620.83863003,0.00041095,18]
[342865422,1732189847162,-11934.2,0.00041095,18]
[342865423,1732189847172,-500.0,0.00041095,18]
[342865424,1732189847182,-500.0,0.00041095,18]
[342865425,1732189847191,-502.50433451,0.00041095,18]
[342865426,1732189847200,-443.64551643,0.00041095,18]
[342865427,1732189847210,-509.62858186,0.00041095,18]
[342865428,1732189847219,-928.62,0.00041095,18]
[342865429,1732189847229,-500.0,0.00041095,18]
[342865430,1732189847238,-500.0,0.00041095,18]
[342865431,1732189847248,-543.32716606,0.00041095,18]
[342865432,1732189847258,-3261.74,0.00041095,18]
[342865433,1732189847267,-500.0,0.00041095,18]
[342865434,1732189847277,-1623.36,0.00041095,18]
[342865435,1732189847286,-1010.58,0.00041095,18]
[342865436,1732189847295,-500.0,0.00041095,18]
[342865437,1732189847304,-500.0,0.00041095,18]
[342865438,1732189847313,-500.0,0.00041095,18]
[342865439,1732189847323,-2012.35,0.00041095,18]
[342865440,1732189847332,-2034.38,0.00041095,18]
[342865441,1732189847341,-500.0,0.00041095,18]
[342865442,1732189847351,-500.0,0.00041095,18]
[342865443,1732189847360,-500.0,0.00041095,18]
[342865444,1732189847370,-6479.87,0.00041095,18]
[342865445,1732189847380,-500.0,0.00041095,18]
[342865446,1732189847391,-500.0,0.00041095,18]
[342865447,1732189847400,-6078.68,0.00041095,18]
[342865449,1732189847410,-514.73,0.00041095,18]
[342865451,1732189847420,-500.0,0.00041095,18]
[342865453,1732189847430,-500.0,0.00041095,18]
[342865455,1732189847440,-3127.55,0.00041095,18]
[342865457,1732189847449,-500.0,0.00041095,18]
[342865459,1732189847458,-2399.11,0.00041095,18]
[342865461,1732189847468,-500.0,0.00041095,18]
[342865463,1732189847477,-2076.6,0.00041095,18]
[342865465,1732189847487,-500.0,0.00041095,18]
[342865467,1732189847496,-500.0,0.00041095,18]
[342865469,1732189847505,-500.0,0.00041095,18]
[342865471,1732189847514,-510.08,0.00041095,18]
[342865473,1732189847523,-1293.59,0.00041095,18]
[342865475,1732189847533,-500.0,0.00041095,18]
[342865477,1732189847542,-500.0,0.00041095,18]
[342865479,1732189847551,-3007.44,0.00041095,18]
[342865481,1732189847561,-500.0,0.00041095,18]
[342865483,1732189847570,-500.0,0.00041095,18]
[342865485,1732189847579,-500.0,0.00041095,18]
[342865487,1732189847588,-500.0,0.00041095,18]
[342865489,1732189847598,-2015.86,0.00041095,18]
[342865490,1732189847608,-694.68,0.00041095,18]
[342865491,1732189847618,-1813.06,0.00041095,18]
[342865492,1732189847628,-500.0,0.00041095,18]
[342865493,1732189847767,-500.0,0.00041095,18]
[342865494,1732189847777,-500.0,0.00041095,18]
[342865496,1732189847787,-500.0,0.00041095,18]
[342865498,1732189847797,-500.0,0.00041095,18]
[342865500,1732189847807,-797.51,0.00041095,18]
[342865502,1732189847817,-543.27,0.00041095,18]
[342865504,1732189847827,-937.55,0.00041095,18]
[342865506,1732189847836,-3170.76,0.00041095,18]
[342865508,1732189847845,-1192.35,0.00041095,18]
[342865510,1732189847855,-500.0,0.00041095,18]
[342865512,1732189847865,-1103.43,0.00041095,18]
[342865514,1732189847874,-9435.5,0.00041095,18]
[342865516,1732189847884,-1179.58,0.00041095,18]
[342865518,1732189847894,-500.0,0.00041095,18]
[342865520,1732189847903,-500.0,0.00041095,18]
[342865522,1732189847915,-500.0,0.00041095,18]
[342865524,1732189847926,-500.0,0.00041095,18]
[342865526,1732189847937,-1764.42,0.00041095,18]
[342865528,1732189847947,-586.45,0.00041095,18]
[342865530,1732189847958,-773.7,0.00041095,18]
[342865532,1732189847968,-500.0,0.00041095,18]
[342865534,1732189847977,-500.0,0.00041095,18]
[342865536,1732189847989,-500.0,0.00041095,18]
[342865537,1732189848000,-500.0,0.00041095,18]
[342865538,1732189848009,-1495.41,0.00041095,18]
[342865539,1732189848018,-1133.17,0.00041095,18]
[342865540,1732189848028,-787.81,0.00041095,18]
[342865541,1732189848038,-1323.98,0.00041095,18]
[342865542,1732189848048,-538.92,0.00041095,18]
[342865543,1732189848057,-500.0,0.00041095,18]
[342865544,1732189848067,-937.31,0.00041095,18]
[342865545,1732189848077,-4866.44,0.00041095,18]
[342865546,1732189848086,-151.0,0.00041095,14]
[342865547,1732189848096,-151.0,0.00041095,14]
[342865548,1732189848106,-659.42,0.00041095,18]
[342865549,1732189848115,-1543.38,0.00041095,18]
[342865550,1732189848125,-790.07,0.00041095,18]
[342865551,1732189848134,-500.0,0.00041095,18]
[342865552,1732189848144,-1101.6,0.00041095,18]
[342865553,1732189848154,-662.82,0.00041095,18]
[342865554,1732189848164,-703.56,0.00041095,18]
[342865555,1732189848174,-1591.73,0.00041095,18]
[342865556,1732189848184,-1079.68,0.00041095,18]
[342865557,1732189848194,-500.0,0.00041095,18]
[342865559,1732189848204,-1970.44,0.00041095,18]
[342865561,1732189848214,-752.44,0.00041095,18]
[342865563,1732189848223,-500.0,0.00041095,18]
[342865565,1732189848233,-1597.36,0.00041095,18]
[342865567,1732189848243,-4038.96,0.00041095,18]
[342865568,1732189848253,-1059.49,0.00041095,18]
[342865570,1732189848264,-1420.59,0.00041095,18]
[342865572,1732189848273,-500.0,0.00041095,18]
[342865574,1732189848284,-1529.18,0.00041095,18]
[342865576,1732189848294,-500.0,0.00041095,18]
[342865578,1732189848303,-500.0,0.00041095,18]
[342865580,1732189848313,-1569.92,0.00041095,18]
[342865582,1732189848322,-826.38,0.00041095,18]
[342865584,1732189848332,-500.0,0.00041095,18]
[342865586,1732189848341,-500.0,0.00041095,18]
[342865588,1732189848351,-1184.5,0.00041095,18]
[342865590,1732189848361,-500.0,0.00041095,18]
[342865592,1732189848371,-1209.16,0.00041095,18]
[342865594,1732189848381,-500.0,0.00041095,18]
[342865596,1732189848397,-1076.27,0.00041095,18]
[342865598,1732189848407,-500.0,0.00041095,18]
[342865600,1732189848418,-500.0,0.00041095,18]
[342865602,1732189848429,-1341.22,0.00041095,18]
[342865604,1732189848440,-664.08,0.00041095,18]
[342865606,1732189848450,-500.0,0.00041095,18]
[342865608,1732189848461,-615.49,0.00041095,18]
[342865610,1732189848472,-1188.59,0.00041095,18]
[342865612,1732189848482,-500.0,0.00041095,18]
[342865614,1732189848492,-500.0,0.00041095,18]
[342865616,1732189848502,-917.88,0.00041095,18]
[342865618,1732189848511,-734.45,0.00041095,18]
[342865620,1732189848520,-500.0,0.00041095,18]
[342865622,1732189848530,-2822.12,0.00041095,18]
[342865624,1732189848541,-1764.84,0.00041095,18]
[342865626,1732189848550,-500.0,0.00041095,18]
[342865628,1732189848561,-507.48,0.00041095,18]
[342865630,1732189848573,-1206.05,0.00041095,18]
[342865632,1732189848583,-500.0,0.00041095,18]
[342865634,1732189848593,-2277.01,0.00041095,18]
[342865636,1732189848603,-823.66,0.00041095,18]
[342865638,1732189848612,-3462.12,0.00041095,18]
[342865640,1732189848622,-557.43682139,0.00041095,18]
[342865642,1732189848631,-500.0,0.00041095,18]
[342865644,1732189848644,-907.46,0.00041095,18]
[342865646,1732189848654,-500.0,0.00041095,18]
[342865648,1732189848665,-500.0,0.00041095,18]
[342865650,1732189848675,-6306.57,0.00041095,18]
[342865652,1732189848685,-500.0,0.00041095,18]
[342865654,1732189848695,-622.1914489,0.00041095,18]
[342865656,1732189848704,-746.1,0.00041095,18]
[342865658,1732189848715,-1752.72918,0.00041095,14]
[342865660,1732189848724,-1975.07,0.00041095,18]
[342865662,1732189848734,-1752.72918,0.00041095,14]
[342865664,1732189848744,-500.0,0.00041095,18]
[342865665,1732189848754,-572.85,0.00041095,18]
[342865666,1732189848764,-500.0,0.00041095,18]
[342865667,1732189848774,-2257.63,0.00041095,18]
[342865668,1732189848784,-1401.14,0.00041095,18]
[342865669,1732189848793,-1439.68,0.00041095,18]
[342865670,1732189848803,-500.0,0.00041095,18]
[342865671,1732189848813,-763.56,0.00041095,18]
[342865672,1732189848822,-500.0,0.00041095,18]
[342865673,1732189848832,-1578.75,0.00041095,18]
[342865674,1732189848842,-500.0,0.00041095,18]
[342865675,1732189848852,-801.82,0.00041095,18]
[342865676,1732189848862,-500.0,0.00041095,18]
[342865677,1732189848872,-1361.49,0.00041095,18]
[342865678,1732189848883,-1182.62,0.00041095,18]
[342865679,1732189848895,-500.0,0.00041095,18]
[342865680,1732189848905,-500.0,0.00041095,18]
[342865681,1732189848917,-500.0,0.00041095,18]
[342865682,1732189848927,-500.0,0.00041095,18]
[342865683,1732189848937,-612.15,0.00041095,18]
[342865684,1732189848947,-500.0,0.00041095,18]
[342865685,1732189848958,-1752.72918,0.00041095,14]
[342865686,1732189848968,-597.33921367,0.00041095,18]
[342865687,1732189848978,-1752.72918,0.00041095,14]
[342865688,1732189848987,-1354.02,0.00041095,18]
[342865689,1732189848997,-500.0,0.00041095,18]
[342865690,1732189849007,-500.0,0.00041095,18]
[342865691,1732189849016,-649.76,0.00041095,18]
[342865692,1732189849026,-1306.87,0.00041095,18]
[342865693,1732189849035,-844.16,0.00041095,18]
[342865694,1732189849046,-2926.14,0.00041095,18]
[342865695,1732189849055,-500.0,0.00041095,18]
[342865696,1732189849065,-5284.91,0.00041095,18]
[342865697,1732189849074,-500.0,0.00041095,18]
[342865698,1732189849084,-500.0,0.00041095,18]
[342865699,1732189849095,-1341.46,0.00041095,18]
[342865700,1732189849105,-500.0,0.00041095,18]
[342865701,1732189849114,-34121.91,0.00041095,18]
[342865702,1732189849124,-699.9,0.00041095,18]
[342865703,1732189849134,-1595.91,0.00041095,18]
[342865704,1732189849145,-1071.22,0.00041095,18]
[342865705,1732189849155,-518.44,0.00041095,18]
[342865706,1732189849165,-500.0,0.00041095,18]
[342865707,1732189849175,-500.0,0.00041095,18]
[342865708,1732189849185,-151.0,0.00041095,14]
[342865709,1732189849195,-151.0,0.00041095,14]
[342865710,1732189849206,-4003.3,0.00041095,18]
[342865711,1732189849216,-1733.74,0.00041095,18]
[342865712,1732189849227,-500.0,0.00041095,18]
[342865713,1732189849236,-791.93,0.00041095,18]
[342865714,1732189849246,-2557.99,0.00041095,18]
[342865715,1732189849257,-1249.9,0.00041095,18]
[342865716,1732189849267,-500.0,0.00041095,18]
[342865717,1732189849277,-1731.38,0.00041095,18]
[342865718,1732189849287,-519.33,0.00041095,18]
[342865719,1732189849297,-529.13,0.00041095,18]
[342865720,1732189849306,-500.0,0.00041095,18]
[342865722,1732189849316,-1362.79,0.00041095,18]
[342865724,1732189849325,-586.57689889,0.00041095,18]
[342865726,1732189849335,-500.0,0.00041095,18]
[342865728,1732189849345,-1241.29,0.00041095,18]
[342865730,1732189849356,-2915.23,0.00041095,18]
[342865732,1732189849366,-3244.13,0.00041095,18]
[342865734,1732189849375,-500.0,0.00041095,18]
[342865736,1732189849386,-2554.53,0.00041095,18]